{"text_format":"1","workbook":"xlsx","n_sheets":10,"sheets":["Начало","1. Резюме на индикаторите","2. ОБЩО СЪБРАН ОБЩИНСКИ ОТПАДЪК","3.  ОБЩО ГЕНЕРИРАНИ ОТПАДЪЦИ","4. СТРУКТУРА НА ОТПАДЪК","5. ДЕПОНИРАН ОБЩИНСКИ ОТПАДЪК","6. ОРГАНИЗИРАНО СЕПАРИРАНЕ","7. ОБЩИ И ФИНАНСОВИ ДАННИ","8. ИНВ-ИИ В ОБОРУД. И АКТИВИ","9. УОО ОПИСАТЕЛНА ИНФОРМАЦИЯ"],"not_rendered":{"charts":9,"images":0,"macros":1,"external_links":0,"defined_names":9,"comments":6,"pivot_tables":0},"unopened":[],"bounds":{"document_bytes":16777216,"sheet_cells":100000,"rows_first":2000,"rows_last":500,"rows_between":2000,"halvings":0,"cell_chars":16384,"cell_head_chars":4096},"cells_cut":0,"cells_raw":0,"read":"whole","date_system":"1900"}

{"sheet":"Начало","index":0,"n_rows":49,"n_cols":7,"rows_kept":49,"cut":false,"hidden":false,"merged":[[0,0,2,10],[14,6,14,9],[17,6,17,9],[7,5,14,5],[7,6,7,9],[8,6,8,9],[9,6,9,9],[10,6,10,9],[11,6,11,9],[12,6,12,9],[13,6,13,9]]}
["Важно! За да работи SWIS изправно, е необходимо да се позволят макроси преди да започнете да въвеждате данни.        \nВажно! Когато запомняте файл, използвайте опцията Excel Macro-Enabled Workbook\n"]
[]
[]
[]
[]
[]
[]
[null,null,null,null,null,"въвеждане на данни","2. ОБЩО СЪБРАН ОБЩИНСКИ ОТПАДЪК"]
[null,null,null,null,null,null,"3. ОБЩО ГЕНЕРИРАНИ ОТПАДЪЦИ"]
[null,null,null,null,null,null,"4. СТРУКТУРА НА ОТПАДЪК"]
[null,null,null,null,null,null,"5. ДЕПОНИРАН ОБЩИНСКИ ОТПАДЪК"]
[null,null,null,null,null,null,"6. ОРГАНИЗИРАНО СЕПАРИРАНЕ"]
[null,null,null,null,null,null,"7. ОБЩИ И ФИНАНСОВИ ДАННИ"]
[null,null,null,null,null,null,"8. ИНВЕСТИЦИИИ В ОБОРУДВАНЕ И АКТИВИ"]
[null,null,null,null,null,null,"9. УОО ОПИСАТЕЛНА ИНФОРМАЦИЯ"]
[]
[]
[null,null,null,null,null,"резултат","1. Резюме на индикаторите"]
[]
[]
[]
[]
[]
[]
[]
[]
[]
[]
[]
[]
[]
[]
[]
[]
[]
[]
[]
[]
[]
[]
[]
[]
[]
[]
[]
[]
[]
[]
[null,null,null,null,null,null,"Milisav Aleksic, freelance consultant, Belgrade, Serbia, milisav.aleksic@gmai.com "]

{"sheet":"1. Резюме на индикаторите","index":1,"n_rows":63,"n_cols":6,"rows_kept":63,"cut":false,"hidden":false,"merged":[]}
[null,"Период",{"$f":"'2. ОБЩО СЪБРАН ОБЩИНСКИ ОТПАДЪК'!E1","v":0}]
[null,{"$f":"'2. ОБЩО СЪБРАН ОБЩИНСКИ ОТПАДЪК'!B2:F2","v":"Примерна община"}]
[null,"Площ в км2",{"$f":"IFERROR('2. ОБЩО СЪБРАН ОБЩИНСКИ ОТПАДЪК'!C3,\"\")","v":0}]
[null,"население",{"$f":"IFERROR('2. ОБЩО СЪБРАН ОБЩИНСКИ ОТПАДЪК'!C4,\"\")","v":0}]
[null,"домакинства",{"$f":"IFERROR('2. ОБЩО СЪБРАН ОБЩИНСКИ ОТПАДЪК'!C5,\"\")","v":0}]
[null,"Обобщени показателите за управление на общинските отпадъци",null,"Граници на показателите","от","до"]
["I","Събиране и транспорт на общинските отпадъци"]
[1,{"$f":"'7. ОБЩИ И ФИНАНСОВИ ДАННИ'!G5","v":"Общо обслужено население/домакинства"},{"$f":"IFERROR('7. ОБЩИ И ФИНАНСОВИ ДАННИ'!I5,\"\")","v":""},"> 70%",0.7,1]
[2,"Покритие (обхват) на услугата в градски райони",{"$f":"IFERROR('7. ОБЩИ И ФИНАНСОВИ ДАННИ'!I6,\"\")","v":""},"> 90%",0.9,1]
[3,"Покритие (обхват) на услугата в селски райони",{"$f":"IFERROR('7. ОБЩИ И ФИНАНСОВИ ДАННИ'!I7,\"\")","v":""},"> 60%",0.6,1]
[4,"Средно количество на събрания отпадък за домакинство кг/ден",{"$f":"IFERROR('2. ОБЩО СЪБРАН ОБЩИНСКИ ОТПАДЪК'!J10,\"\")","v":""},"1,05 - 3,6кг",1.0499999999999998,3.5999999999999996]
[5,{"$f":"'3.  ОБЩО ГЕНЕРИРАНИ ОТПАДЪЦИ'!B6","v":"Средно количество на събрания отпадък на глава от населението кг/ден"},{"$f":"IFERROR('3.  ОБЩО ГЕНЕРИРАНИ ОТПАДЪЦИ'!C6,\"\")","v":""},"0,35 - 1,2кг",0.35,1.2]
[6,{"$f":"'7. ОБЩИ И ФИНАНСОВИ ДАННИ'!B22","v":"Количество събран отпадък годишно на работник в тонове"},{"$f":"IFERROR('7. ОБЩИ И ФИНАНСОВИ ДАННИ'!C22,\"\")","v":""},"> 650 тона/наето лице",650,1600]
[7,{"$f":"'7. ОБЩИ И ФИНАНСОВИ ДАННИ'!B23","v":"Обслужено население за нато лице"},{"$f":"IFERROR('7. ОБЩИ И ФИНАНСОВИ ДАННИ'!C23,\"\")","v":""},"> 1300 е.ж./наето лице",1300,7000]
[8,{"$f":"'7. ОБЩИ И ФИНАНСОВИ ДАННИ'!B24","v":"Наето лице на 1000 обслужени граждани"},{"$f":"IFERROR('7. ОБЩИ И ФИНАНСОВИ ДАННИ'!C24:D24,\"\")","v":""},"1 - 2 наето лице/1000 е.ж.",1,2]
[9,{"$f":"'7. ОБЩИ И ФИНАНСОВИ ДАННИ'!B21","v":"Съотношение между администрация и оперативни работници 1:"},{"$f":"IFERROR('7. ОБЩИ И ФИНАНСОВИ ДАННИ'!C21:D21,\"\")","v":""},null,14,25]
[10,{"$f":"'9. УОО ОПИСАТЕЛНА ИНФОРМАЦИЯ'!C55","v":"Сбор на осигурения обем на събиране в м3"},{"$f":"'9. УОО ОПИСАТЕЛНА ИНФОРМАЦИЯ'!H55","v":0},null,{"$f":"C18","v":""},{"$f":"C19","v":""}]
[11,"Необходим обем на обслужване в м3 при текущия коефициент на събиране",{"$f":"IFERROR(('2. ОБЩО СЪБРАН ОБЩИНСКИ ОТПАДЪК'!C10*'2. ОБЩО СЪБРАН ОБЩИНСКИ ОТПАДЪК'!J10)/'2. ОБЩО СЪБРАН ОБЩИНСКИ ОТПАДЪК'!G10/1000,\"\")","v":""}]
[12,"Необходим обем на обслужване в м3 при коефициент на събиране 100%",{"$f":"IFERROR(('2. ОБЩО СЪБРАН ОБЩИНСКИ ОТПАДЪК'!C5*'2. ОБЩО СЪБРАН ОБЩИНСКИ ОТПАДЪК'!J10)/'2. ОБЩО СЪБРАН ОБЩИНСКИ ОТПАДЪК'!G10/1000,\"\")","v":""}]
[13,"Съотношение между осъществен и необходим обем при текущия коефициент на събиране",{"$f":"IFERROR(C18/C17,\"\")","v":""},{"$f":"1:1","v":0},1,1]
[14,"Съотношение между осъществен и необходим обем при коефициент на събиране 100 %",{"$f":"IFERROR(C19/C17,\"\")","v":""},null,1,1]
["II","Количества на общинския отпадък"]
[15,{"$f":"'3.  ОБЩО ГЕНЕРИРАНИ ОТПАДЪЦИ'!L9","v":"Прогнозно количество на генерирания отпадък в тонове/година"},{"$f":"IFERROR('3.  ОБЩО ГЕНЕРИРАНИ ОТПАДЪЦИ'!L21,\"\")","v":0}]
[16,{"$f":"'2. ОБЩО СЪБРАН ОБЩИНСКИ ОТПАДЪК'!H9","v":"Количество на събрания отпадък за една година в тонове"},{"$f":"'2. ОБЩО СЪБРАН ОБЩИНСКИ ОТПАДЪК'!H21","v":0}]
[17,"Съотношение между събраните отпадъци в градските и селските райони ",{"$f":"IFERROR('7. ОБЩИ И ФИНАНСОВИ ДАННИ'!H6/'7. ОБЩИ И ФИНАНСОВИ ДАННИ'!H7,\"\")","v":""}]
[18,{"$f":"'3.  ОБЩО ГЕНЕРИРАНИ ОТПАДЪЦИ'!M9","v":"Прогнозно количество на безконтролно изхвърления отпадък в тонове/година"},{"$f":"IFERROR('3.  ОБЩО ГЕНЕРИРАНИ ОТПАДЪЦИ'!M21,\"\")","v":0}]
[19,"Безконтролно изхвърлен отпадък в % от общо генерирания",{"$f":"IFERROR('3.  ОБЩО ГЕНЕРИРАНИ ОТПАДЪЦИ'!N21,\"\")","v":""}]
[20,"Безконтролно изхвърлен отпадък в % от общо събрания",{"$f":"'3.  ОБЩО ГЕНЕРИРАНИ ОТПАДЪЦИ'!O21","v":0}]
["III","Общински отпадъци депонирани на сметища без сепариране"]
[21,"Общински отпадък депониран без сепариране на традиционни сметища в %",{"$f":"IFERROR('5. ДЕПОНИРАН ОБЩИНСКИ ОТПАДЪК'!F24,\"\")","v":""},null,0,0]
[22,"Общински отпадък депониран без сепариране на контролирани сметища в %",{"$f":"IFERROR('5. ДЕПОНИРАН ОБЩИНСКИ ОТПАДЪК'!H24,\"\")","v":""},null,1,1]
[23,"Общински отпадък изгорен в инсталации за изгаряне без сепариране в %",{"$f":"IFERROR('5. ДЕПОНИРАН ОБЩИНСКИ ОТПАДЪК'!J24,\"\")","v":""},null,0,1]
["IV","Общински отпадъци депонирани на сметища след сепариране"]
[24,"Депонирани на сметище след сепариране в % от събраното",{"$f":"IFERROR('6. ОРГАНИЗИРАНО СЕПАРИРАНЕ'!M24,\"\")","v":""},"65% - 35%",0.65,0.35]
[25,"Средно количество на депонирания битов отпадък на гл. от нас./кг/ден",{"$f":"IFERROR(C12*C34,\"\")","v":""},"0,23 - 0,42кг/е.ж.*ден",{"$f":"E11*E34","v":0.68249999999999988},{"$f":"F11*F34","v":1.2599999999999998}]
[26,"Сепариран в % от общо събрания",{"$f":"IFERROR('6. ОРГАНИЗИРАНО СЕПАРИРАНЕ'!F24+'6. ОРГАНИЗИРАНО СЕПАРИРАНЕ'!H24,\"\")","v":""},"35% - 65%",{"$f":"100%-E34","v":0.35},{"$f":"100%-F34","v":0.65}]
[27,"Средно количество на сепарирания битов отпадък на гл. от нас./кг/ден",{"$f":"IFERROR(C12*C36,\"\")","v":""},"0,12 - 0,78кг/е.ж.*ден",{"$f":"E36*E11","v":0.36749999999999994},{"$f":"F36*F11","v":2.34}]
["V","Оползотворяване на общинските отпадъци след сепариране"]
[28,"% от общото кол. сепариран, който се рециклира и пласира, вкл. Запасите",{"$f":"IFERROR('6. ОРГАНИЗИРАНО СЕПАРИРАНЕ'!R24,\"\")","v":""},"0% - 80%",0,0.8]
[29,"% от общото кол. сепариран, който се изгаря със оползотворяване на енергия",{"$f":"IFERROR('6. ОРГАНИЗИРАНО СЕПАРИРАНЕ'!T24,\"\")","v":""},"0% - 40%",0,0.4]
[30,"% от общото кол. сепариран, който се компостира",{"$f":"IFERROR('6. ОРГАНИЗИРАНО СЕПАРИРАНЕ'!V24,\"\")","v":""},"0% - 65%",0,0.65]
["VI","Капацитет на сметищата"]
[31,{"$f":"'6. ОРГАНИЗИРАНО СЕПАРИРАНЕ'!B30","v":"Използван обем на сметището до настоящия момент  "},{"$f":"'6. ОРГАНИЗИРАНО СЕПАРИРАНЕ'!D30","v":0},"0 - 100%",0,1]
[32,{"$f":"'6. ОРГАНИЗИРАНО СЕПАРИРАНЕ'!B33","v":"Живот (експлоатационен период) на сметището- оставащи години при сегашната скорост на депониране без сепариране или изгаряне"},{"$f":"IFERROR('6. ОРГАНИЗИРАНО СЕПАРИРАНЕ'!D33,\"\")","v":""},"5 - 10 год",5,10]
[33,{"$f":"'6. ОРГАНИЗИРАНО СЕПАРИРАНЕ'!B32","v":"Живот (експлоатационен период) на сметището  - оставащи години след сепариране, рециклиране и възстановяване"},{"$f":"IFERROR('6. ОРГАНИЗИРАНО СЕПАРИРАНЕ'!D32,\"\")","v":""},"> 30 год",5,30]
[34,{"$f":"'6. ОРГАНИЗИРАНО СЕПАРИРАНЕ'!B27","v":"Средно количество на депонирания отпадък в тонове на ден преди сепариране"},{"$f":"IFERROR('6. ОРГАНИЗИРАНО СЕПАРИРАНЕ'!D27,\"\")","v":""}]
[35,{"$f":"'6. ОРГАНИЗИРАНО СЕПАРИРАНЕ'!B28","v":"Средно количество на депонирания отпадък в тонове на ден след сепариране"},{"$f":"IFERROR('6. ОРГАНИЗИРАНО СЕПАРИРАНЕ'!D28,\"\")","v":""}]
["VII","Текуща стойност, планирани инвестиции и приблизителни разходи в лв"]
[null,"За лв/тон"]
[36,{"$f":"'7. ОБЩИ И ФИНАНСОВИ ДАННИ'!B25","v":"Текущи разходи за събирането и транспорта на отпадъци в лв за тон"},{"$f":"IFERROR('7. ОБЩИ И ФИНАНСОВИ ДАННИ'!C25,\"\")","v":""},null,10,45]
[37,{"$f":"'8. ИНВ-ИИ В ОБОРУД. И АКТИВИ'!B68","v":"Приблизително увеличение в стойността на събирането и транспорта за тон в лв"},{"$f":"IFERROR('8. ИНВ-ИИ В ОБОРУД. И АКТИВИ'!C68,\"\")","v":""}]
[38,{"$f":"'8. ИНВ-ИИ В ОБОРУД. И АКТИВИ'!B67","v":"Приблизителна стойност на събирането и транспорта вкл. увеличението за инвестиции в оборудване в лв/тон"},{"$f":"IFERROR('8. ИНВ-ИИ В ОБОРУД. И АКТИВИ'!C67,\"\")","v":""}]
[39,{"$f":"'8. ИНВ-ИИ В ОБОРУД. И АКТИВИ'!E67","v":"Приблизително увеличение в разходите за инвестиции в рециклиране, възстановяване и депониране на събраните количества в лв/тон"},{"$f":"IFERROR('8. ИНВ-ИИ В ОБОРУД. И АКТИВИ'!F67,\"\")","v":""}]
[40,{"$f":"'8. ИНВ-ИИ В ОБОРУД. И АКТИВИ'!E68","v":"Приблизителна обща стойност на управлението на твърди отпадъци (събиране, транспорт, третиране и депониране) с увеличението за инвестиции в лв/тон"},{"$f":"IFERROR('8. ИНВ-ИИ В ОБОРУД. И АКТИВИ'!F68,\"\")","v":""},null,60,120]
[null,"За домакинство"]
[41,"Текущи разходи за събиране и транспорт  на домакинство/година в лв",{"$f":"IFERROR('2. ОБЩО СЪБРАН ОБЩИНСКИ ОТПАДЪК'!J10*365/1000*C50,\"\")","v":""}]
[42,"Приблизително увеличение в разходите за събиране и транспорт на домакинство/година в лв",{"$f":"IFERROR(C58-C56,\"\")","v":""}]
[43,"Приблизителни разходи за събиране и транспорт на домакинство/година в лв",{"$f":"IFERROR('2. ОБЩО СЪБРАН ОБЩИНСКИ ОТПАДЪК'!J10*365/1000*'8. ИНВ-ИИ В ОБОРУД. И АКТИВИ'!C67,\"\")","v":""}]
[44,"Приблизително увеличение в разходите за инвестиции в рециклиране, оползотворяване и депониране на събраните количества на домакинство/година в лв",{"$f":"IFERROR('2. ОБЩО СЪБРАН ОБЩИНСКИ ОТПАДЪК'!J10*365/1000*'8. ИНВ-ИИ В ОБОРУД. И АКТИВИ'!F67,\"\")","v":""}]
[45,"Приблизителни общи разходи за операции по упр. На отпадъците (събиране, транспорт, третиране и депониране) с увеличение за инвестиции на домакинство/година в лв",{"$f":"IFERROR('2. ОБЩО СЪБРАН ОБЩИНСКИ ОТПАДЪК'!J10*365/1000*C54,\"\")","v":""}]
[]
[]
[null,"Начало"]

{"sheet":"2. ОБЩО СЪБРАН ОБЩИНСКИ ОТПАДЪК","index":2,"n_rows":22,"n_cols":10,"rows_kept":22,"cut":false,"hidden":false,"merged":[[0,4,0,5],[1,1,1,5],[0,2,0,3],[21,1,23,2],[21,3,40,9],[6,2,6,9]]}
[null,"Община","Период - година"]
[null,"Примерна община"]
[null,"Площ в км2"]
[null,"население"]
[null,"домакинства"]
[null,"средно членове на домакинство",{"$f":"C4/C5","v":{"$error":"#DIV/0!"}}]
[null,null,"ОБЩО СЪБРАН ОБЩИНСКИ ОТПАДЪК ОТ ОБСЛУЖВАНИ ГЕНЕРАТОРИ НА ОТПАДЪК"]
[null,null,1,2,2.1,3,4,5,null,6]
[null,"ПРОИЗХОД НА ОТПАДЪКА ПО ВИД","Общ брой на обслужените генератори на отпадък","Количество събрани отпадъци годишно в избрани мерни единици (колона 2.1) ","Избрана мерна единица","Събрани количества като % от общото","Коефициент на преобразуване на средната плътност на отпадъка (т/м3)","Количество на събрания отпадък за една година в тонове",null,"Средно количество на събрания отпадък кг/ден"]
[1,"Смесен битов отпадък",null,null,null,{"$f":"I10/$H$21","v":{"$error":"#DIV/0!"}},null,{"$f":"IF(C10=0,D10=0,IF(D10=0,C10=0,D10*G10))","v":true},{"$f":"IFERROR(VALUE(H10),0)","v":0},{"$f":"((H10/C10)/365)*1000","v":{"$error":"#DIV/0!"}}]
[2,"Общински отпадък от обществените пространства",null,null,null,{"$error":"#DIV/0!"},null,true,0,{"$error":"#DIV/0!"}]
[3,"Едрогабаритен общински отпадък",null,null,null,{"$error":"#DIV/0!"},null,true,0,{"$error":"#DIV/0!"}]
[4,"Тръговски предприятия",null,null,null,{"$error":"#DIV/0!"},null,true,0,{"$error":"#DIV/0!"}]
[5,"Институции (общински и други)",null,null,null,{"$error":"#DIV/0!"},null,true,0,{"$error":"#DIV/0!"}]
[6,"Промишлени неопасни отпадъци",null,null,null,{"$error":"#DIV/0!"},null,true,0,{"$error":"#DIV/0!"}]
[7,"Строителни отпадъци",null,null,null,{"$error":"#DIV/0!"},null,true,0,{"$error":"#DIV/0!"}]
[8,"Селскостопански органичен отпадък",null,null,null,{"$error":"#DIV/0!"},null,true,0,{"$error":"#DIV/0!"}]
[9,"Други",null,null,null,{"$error":"#DIV/0!"},null,true,0,{"$error":"#DIV/0!"}]
[10,"Други",null,null,null,{"$error":"#DIV/0!"},null,true,0,{"$error":"#DIV/0!"}]
[11,"Други",null,null,null,{"$error":"#DIV/0!"},null,true,0,{"$error":"#DIV/0!"}]
[null,"Общо",null,null,null,{"$f":"SUM(F10:F20)","v":{"$error":"#DIV/0!"}},null,{"$f":"SUM(H10:H20)","v":0}]
[null,"Начало",null,"Бележки:  "]

{"sheet":"3.  ОБЩО ГЕНЕРИРАНИ ОТПАДЪЦИ","index":3,"n_rows":23,"n_cols":14,"rows_kept":23,"cut":false,"hidden":false,"merged":[[22,1,24,2],[22,3,42,14],[0,4,0,5],[0,7,0,8],[1,1,1,8],[0,2,0,3],[6,2,6,14]]}
[null,{"$f":"'2. ОБЩО СЪБРАН ОБЩИНСКИ ОТПАДЪК'!B1","v":"Община"},{"$f":"'2. ОБЩО СЪБРАН ОБЩИНСКИ ОТПАДЪК'!C1","v":"Период - година"},null,{"$f":"'2. ОБЩО СЪБРАН ОБЩИНСКИ ОТПАДЪК'!E1:F1","v":0},null,null,{"$f":"'2. ОБЩО СЪБРАН ОБЩИНСКИ ОТПАДЪК'!E1","v":0}]
[null,{"$f":"'2. ОБЩО СЪБРАН ОБЩИНСКИ ОТПАДЪК'!B2","v":"Примерна община"}]
[null,"население",{"$f":"'2. ОБЩО СЪБРАН ОБЩИНСКИ ОТПАДЪК'!C4","v":0}]
[null,"домакинства",{"$f":"'2. ОБЩО СЪБРАН ОБЩИНСКИ ОТПАДЪК'!C5","v":0}]
[null,"средно членове на домакинство",{"$f":"C3/C4","v":{"$error":"#DIV/0!"}}]
[null,"Средно количество на събрания отпадък на глава от населението кг/ден",{"$f":"(L21/C3/365*1000)","v":{"$error":"#DIV/0!"}}]
[null,null,"Общо генерирани отпадъци в общините от всички източници"]
[null,null,1,2,null,null,2,3,4,5,6,7,8,9]
[null,"Произход на отпадъка по вид","Общ брой на обслужените генератори на отпадък","Общ брой на съществуващите генератори на отпадък вкл. Обслужените","Quantity of waste collected annually in m3","% of Total Collected","Average waste density conversion factor","Разлика между  броя на съществуващите и обслужените генератори на отпадък","Количество на събрания отпадък за една година в тонове","Постигнато обслужване в % от количествата","Прогнозно средно количество на генерирания отпадък (който не се събира) в тонове","Прогнозно количество на генерирания отпадък в тонове/година","Прогнозно количество на безконтролно изхвърления отпадък в тонове/година","Оценено безконтролно депониране на отпадъци в % от генерираните отпадъци "]
[1,{"$f":"'2. ОБЩО СЪБРАН ОБЩИНСКИ ОТПАДЪК'!B10","v":"Смесен битов отпадък"},{"$f":"'2. ОБЩО СЪБРАН ОБЩИНСКИ ОТПАДЪК'!C10","v":0},null,{"$f":"IF('2. ОБЩО СЪБРАН ОБЩИНСКИ ОТПАДЪК'!H10=FALSE,'2. ОБЩО СЪБРАН ОБЩИНСКИ ОТПАДЪК'!D10=0,'2. ОБЩО СЪБРАН ОБЩИНСКИ ОТПАДЪК'!D10)","v":0},{"$f":"E10/$E$21","v":{"$error":"#DIV/0!"}},{"$f":"'2. ОБЩО СЪБРАН ОБЩИНСКИ ОТПАДЪК'!G10","v":0},{"$f":"D10-C10","v":0},{"$f":"E10*G10","v":0},{"$f":"C10/D10","v":{"$error":"#DIV/0!"}},{"$f":"IFERROR((I10*(1-J10))/J10,0)","v":0},{"$f":"IFERROR(IF(J10=0,K10,I10/J10),0)","v":0},{"$f":"L10-I10","v":0},{"$f":"M10/L10","v":{"$error":"#DIV/0!"}}]
[2,{"$f":"'2. ОБЩО СЪБРАН ОБЩИНСКИ ОТПАДЪК'!B11","v":"Общински отпадък от обществените пространства"},{"$f":"'2. ОБЩО СЪБРАН ОБЩИНСКИ ОТПАДЪК'!C11","v":0},null,{"$f":"IF('2. ОБЩО СЪБРАН ОБЩИНСКИ ОТПАДЪК'!H11=FALSE,'2. ОБЩО СЪБРАН ОБЩИНСКИ ОТПАДЪК'!D11=0,'2. ОБЩО СЪБРАН ОБЩИНСКИ ОТПАДЪК'!D11)","v":0},{"$error":"#DIV/0!"},{"$f":"'2. ОБЩО СЪБРАН ОБЩИНСКИ ОТПАДЪК'!G11","v":0},{"$f":"D11-C11","v":0},0,{"$f":"C11/D11","v":{"$error":"#DIV/0!"}},0,{"$f":"IFERROR(IF(J11=0,K11,I11/J11),0)","v":0},{"$f":"L11-I11","v":0},{"$error":"#DIV/0!"}]
[3,{"$f":"'2. ОБЩО СЪБРАН ОБЩИНСКИ ОТПАДЪК'!B12","v":"Едрогабаритен общински отпадък"},{"$f":"'2. ОБЩО СЪБРАН ОБЩИНСКИ ОТПАДЪК'!C12","v":0},null,{"$f":"IF('2. ОБЩО СЪБРАН ОБЩИНСКИ ОТПАДЪК'!H12=FALSE,'2. ОБЩО СЪБРАН ОБЩИНСКИ ОТПАДЪК'!D12=0,'2. ОБЩО СЪБРАН ОБЩИНСКИ ОТПАДЪК'!D12)","v":0},{"$error":"#DIV/0!"},{"$f":"'2. ОБЩО СЪБРАН ОБЩИНСКИ ОТПАДЪК'!G12","v":0},0,{"$f":"E12*G12","v":0},{"$error":"#DIV/0!"},0,0,0,{"$error":"#DIV/0!"}]
[4,{"$f":"'2. ОБЩО СЪБРАН ОБЩИНСКИ ОТПАДЪК'!B13","v":"Тръговски предприятия"},{"$f":"'2. ОБЩО СЪБРАН ОБЩИНСКИ ОТПАДЪК'!C13","v":0},null,{"$f":"IF('2. ОБЩО СЪБРАН ОБЩИНСКИ ОТПАДЪК'!H13=FALSE,'2. ОБЩО СЪБРАН ОБЩИНСКИ ОТПАДЪК'!D13=0,'2. ОБЩО СЪБРАН ОБЩИНСКИ ОТПАДЪК'!D13)","v":0},{"$error":"#DIV/0!"},{"$f":"'2. ОБЩО СЪБРАН ОБЩИНСКИ ОТПАДЪК'!G13","v":0},0,0,{"$error":"#DIV/0!"},0,0,0,{"$error":"#DIV/0!"}]
[5,{"$f":"'2. ОБЩО СЪБРАН ОБЩИНСКИ ОТПАДЪК'!B14","v":"Институции (общински и други)"},{"$f":"'2. ОБЩО СЪБРАН ОБЩИНСКИ ОТПАДЪК'!C14","v":0},null,{"$f":"IF('2. ОБЩО СЪБРАН ОБЩИНСКИ ОТПАДЪК'!H14=FALSE,'2. ОБЩО СЪБРАН ОБЩИНСКИ ОТПАДЪК'!D14=0,'2. ОБЩО СЪБРАН ОБЩИНСКИ ОТПАДЪК'!D14)","v":0},{"$error":"#DIV/0!"},{"$f":"'2. ОБЩО СЪБРАН ОБЩИНСКИ ОТПАДЪК'!G14","v":0},0,0,{"$error":"#DIV/0!"},0,0,0,{"$error":"#DIV/0!"}]
[6,{"$f":"'2. ОБЩО СЪБРАН ОБЩИНСКИ ОТПАДЪК'!B15","v":"Промишлени неопасни отпадъци"},{"$f":"'2. ОБЩО СЪБРАН ОБЩИНСКИ ОТПАДЪК'!C15","v":0},null,{"$f":"IF('2. ОБЩО СЪБРАН ОБЩИНСКИ ОТПАДЪК'!H15=FALSE,'2. ОБЩО СЪБРАН ОБЩИНСКИ ОТПАДЪК'!D15=0,'2. ОБЩО СЪБРАН ОБЩИНСКИ ОТПАДЪК'!D15)","v":0},{"$error":"#DIV/0!"},{"$f":"'2. ОБЩО СЪБРАН ОБЩИНСКИ ОТПАДЪК'!G15","v":0},0,0,{"$error":"#DIV/0!"},0,0,0,{"$error":"#DIV/0!"}]
[7,{"$f":"'2. ОБЩО СЪБРАН ОБЩИНСКИ ОТПАДЪК'!B16","v":"Строителни отпадъци"},{"$f":"'2. ОБЩО СЪБРАН ОБЩИНСКИ ОТПАДЪК'!C16","v":0},null,{"$f":"IF('2. ОБЩО СЪБРАН ОБЩИНСКИ ОТПАДЪК'!H16=FALSE,'2. ОБЩО СЪБРАН ОБЩИНСКИ ОТПАДЪК'!D16=0,'2. ОБЩО СЪБРАН ОБЩИНСКИ ОТПАДЪК'!D16)","v":0},{"$error":"#DIV/0!"},{"$f":"'2. ОБЩО СЪБРАН ОБЩИНСКИ ОТПАДЪК'!G16","v":0},0,0,{"$error":"#DIV/0!"},0,0,0,{"$error":"#DIV/0!"}]
[8,{"$f":"'2. ОБЩО СЪБРАН ОБЩИНСКИ ОТПАДЪК'!B17","v":"Селскостопански органичен отпадък"},{"$f":"'2. ОБЩО СЪБРАН ОБЩИНСКИ ОТПАДЪК'!C17","v":0},null,{"$f":"IF('2. ОБЩО СЪБРАН ОБЩИНСКИ ОТПАДЪК'!H17=FALSE,'2. ОБЩО СЪБРАН ОБЩИНСКИ ОТПАДЪК'!D17=0,'2. ОБЩО СЪБРАН ОБЩИНСКИ ОТПАДЪК'!D17)","v":0},{"$error":"#DIV/0!"},{"$f":"'2. ОБЩО СЪБРАН ОБЩИНСКИ ОТПАДЪК'!G17","v":0},0,0,{"$error":"#DIV/0!"},0,0,0,{"$error":"#DIV/0!"}]
[9,{"$f":"'2. ОБЩО СЪБРАН ОБЩИНСКИ ОТПАДЪК'!B18","v":"Други"},{"$f":"'2. ОБЩО СЪБРАН ОБЩИНСКИ ОТПАДЪК'!C18","v":0},null,{"$f":"IF('2. ОБЩО СЪБРАН ОБЩИНСКИ ОТПАДЪК'!H18=FALSE,'2. ОБЩО СЪБРАН ОБЩИНСКИ ОТПАДЪК'!D18=0,'2. ОБЩО СЪБРАН ОБЩИНСКИ ОТПАДЪК'!D18)","v":0},{"$error":"#DIV/0!"},{"$f":"'2. ОБЩО СЪБРАН ОБЩИНСКИ ОТПАДЪК'!G18","v":0},0,0,{"$error":"#DIV/0!"},0,0,0,{"$error":"#DIV/0!"}]
[10,{"$f":"'2. ОБЩО СЪБРАН ОБЩИНСКИ ОТПАДЪК'!B19","v":"Други"},{"$f":"'2. ОБЩО СЪБРАН ОБЩИНСКИ ОТПАДЪК'!C19","v":0},null,{"$f":"IF('2. ОБЩО СЪБРАН ОБЩИНСКИ ОТПАДЪК'!H19=FALSE,'2. ОБЩО СЪБРАН ОБЩИНСКИ ОТПАДЪК'!D19=0,'2. ОБЩО СЪБРАН ОБЩИНСКИ ОТПАДЪК'!D19)","v":0},{"$f":"E19/$E$21","v":{"$error":"#DIV/0!"}},{"$f":"'2. ОБЩО СЪБРАН ОБЩИНСКИ ОТПАДЪК'!G19","v":0},{"$f":"D19-C19","v":0},{"$f":"E19*G19","v":0},{"$f":"C19/D19","v":{"$error":"#DIV/0!"}},0,0,{"$f":"L19-I19","v":0},{"$f":"M19/L19","v":{"$error":"#DIV/0!"}}]
[11,{"$f":"'2. ОБЩО СЪБРАН ОБЩИНСКИ ОТПАДЪК'!B20","v":"Други"},{"$f":"'2. ОБЩО СЪБРАН ОБЩИНСКИ ОТПАДЪК'!C20","v":0},null,{"$f":"IF('2. ОБЩО СЪБРАН ОБЩИНСКИ ОТПАДЪК'!H20=FALSE,'2. ОБЩО СЪБРАН ОБЩИНСКИ ОТПАДЪК'!D20=0,'2. ОБЩО СЪБРАН ОБЩИНСКИ ОТПАДЪК'!D20)","v":0},{"$error":"#DIV/0!"},{"$f":"'2. ОБЩО СЪБРАН ОБЩИНСКИ ОТПАДЪК'!G20","v":0},0,0,{"$error":"#DIV/0!"},0,0,0,{"$error":"#DIV/0!"}]
[null,"Общо",null,null,{"$f":"SUM(E10:E20)","v":0},null,null,null,{"$f":"SUM(I10:I20)","v":0},null,{"$f":"SUM(K10:K20)","v":0},{"$f":"SUM(L10:L20)","v":0},{"$f":"SUM(M10:M20)","v":0},{"$f":"M21/L21","v":{"$error":"#DIV/0!"}}]
[]
[null,"Начало",null,"Бележки: "]

{"sheet":"4. СТРУКТУРА НА ОТПАДЪК","index":4,"n_rows":24,"n_cols":9,"rows_kept":24,"cut":false,"hidden":false,"merged":[[1,1,1,5],[1,7,1,11],[0,1,0,2],[23,1,25,3],[23,5,38,13]]}
[null,{"$f":"'2. ОБЩО СЪБРАН ОБЩИНСКИ ОТПАДЪК'!B1","v":"Община"},null,{"$f":"'2. ОБЩО СЪБРАН ОБЩИНСКИ ОТПАДЪК'!C1","v":"Период - година"},{"$f":"'2. ОБЩО СЪБРАН ОБЩИНСКИ ОТПАДЪК'!E1:F1","v":0}]
[null,{"$f":"'2. ОБЩО СЪБРАН ОБЩИНСКИ ОТПАДЪК'!B2","v":"Примерна община"}]
[]
[null,1,2,3,4,5]
[null,"СТРУКТУРА НА СМЕСЕНИЯ ОБЩИНСКИ ОТПАДЪК","Очаквано средно съдържание","Количество на събрания отпадък в тонове","Количество на генерирания отпадък в тонове","Количества на безконтролно изхвърления отпадък в тонове",null,null,"Estimated Average Density t/m3"]
[1,"Градински отпадъци",null,{"$f":"'2. ОБЩО СЪБРАН ОБЩИНСКИ ОТПАДЪК'!$H$21*C6","v":0},{"$f":"'3.  ОБЩО ГЕНЕРИРАНИ ОТПАДЪЦИ'!$L$21*C6","v":0},{"$f":"E6-D6","v":0},null,null,0.1]
[2,"Други биоразградими отпадъци",null,{"$f":"'2. ОБЩО СЪБРАН ОБЩИНСКИ ОТПАДЪК'!$H$21*C7","v":0},{"$f":"'3.  ОБЩО ГЕНЕРИРАНИ ОТПАДЪЦИ'!$L$21*C7","v":0},{"$f":"E7-D7","v":0},null,null,0.14399999999999999]
[3,"Хартия",null,{"$f":"'2. ОБЩО СЪБРАН ОБЩИНСКИ ОТПАДЪК'!$H$21*C8","v":0},{"$f":"'3.  ОБЩО ГЕНЕРИРАНИ ОТПАДЪЦИ'!$L$21*C8","v":0},0,null,null,0.33300000000000002]
[4,"Стъкло",null,{"$f":"'2. ОБЩО СЪБРАН ОБЩИНСКИ ОТПАДЪК'!$H$21*C9","v":0},{"$f":"'3.  ОБЩО ГЕНЕРИРАНИ ОТПАДЪЦИ'!$L$21*C9","v":0},0,null,null,0.64]
[5,"Картон",null,{"$f":"'2. ОБЩО СЪБРАН ОБЩИНСКИ ОТПАДЪК'!$H$21*C10","v":0},{"$f":"'3.  ОБЩО ГЕНЕРИРАНИ ОТПАДЪЦИ'!$L$21*C10","v":0},0,null,null,0.57569999999999999]
[6,"Картон с восък",null,{"$f":"'2. ОБЩО СЪБРАН ОБЩИНСКИ ОТПАДЪК'!$H$21*C11","v":0},{"$f":"'3.  ОБЩО ГЕНЕРИРАНИ ОТПАДЪЦИ'!$L$21*C11","v":0},0,null,null,0.32]
[7,"Картон с алуминий",null,{"$f":"'2. ОБЩО СЪБРАН ОБЩИНСКИ ОТПАДЪК'!$H$21*C12","v":0},{"$f":"'3.  ОБЩО ГЕНЕРИРАНИ ОТПАДЪЦИ'!$L$21*C12","v":0},0,null,null,0.1]
[8,"Метал - Опаковки и други",null,{"$f":"'2. ОБЩО СЪБРАН ОБЩИНСКИ ОТПАДЪК'!$H$21*C13","v":0},{"$f":"'3.  ОБЩО ГЕНЕРИРАНИ ОТПАДЪЦИ'!$L$21*C13","v":0},0]
[9,"Метал - алуминиеви кутии",null,{"$f":"'2. ОБЩО СЪБРАН ОБЩИНСКИ ОТПАДЪК'!$H$21*C14","v":0},{"$f":"'3.  ОБЩО ГЕНЕРИРАНИ ОТПАДЪЦИ'!$L$21*C14","v":0},0,null,null,0.17599999999999999]
[10,"Пластмасови отпадъци от опаковки",null,{"$f":"'2. ОБЩО СЪБРАН ОБЩИНСКИ ОТПАДЪК'!$H$21*C15","v":0},{"$f":"'3.  ОБЩО ГЕНЕРИРАНИ ОТПАДЪЦИ'!$L$21*C15","v":0},0,null,null,0.129]
[11,"Найлонови торбички",null,{"$f":"'2. ОБЩО СЪБРАН ОБЩИНСКИ ОТПАДЪК'!$H$21*C16","v":0},{"$f":"'3.  ОБЩО ГЕНЕРИРАНИ ОТПАДЪЦИ'!$L$21*C16","v":0},0,null,null,0.224]
[12,"Твърди пластмаси",null,{"$f":"'2. ОБЩО СЪБРАН ОБЩИНСКИ ОТПАДЪК'!$H$21*C17","v":0},{"$f":"'3.  ОБЩО ГЕНЕРИРАНИ ОТПАДЪЦИ'!$L$21*C17","v":0},0,null,null,0.1]
[13,"Текстил",null,{"$f":"'2. ОБЩО СЪБРАН ОБЩИНСКИ ОТПАДЪК'!$H$21*C18","v":0},{"$f":"'3.  ОБЩО ГЕНЕРИРАНИ ОТПАДЪЦИ'!$L$21*C18","v":0},0]
[14,"Кожа",null,{"$f":"'2. ОБЩО СЪБРАН ОБЩИНСКИ ОТПАДЪК'!$H$21*C19","v":0},{"$f":"'3.  ОБЩО ГЕНЕРИРАНИ ОТПАДЪЦИ'!$L$21*C19","v":0},0]
[15,"Пелени",null,{"$f":"'2. ОБЩО СЪБРАН ОБЩИНСКИ ОТПАДЪК'!$H$21*C20","v":0},{"$f":"'3.  ОБЩО ГЕНЕРИРАНИ ОТПАДЪЦИ'!$L$21*C20","v":0},0]
[16,"Дребни детайли (<20mm)",null,{"$f":"'2. ОБЩО СЪБРАН ОБЩИНСКИ ОТПАДЪК'!$H$21*C21","v":0},{"$f":"'3.  ОБЩО ГЕНЕРИРАНИ ОТПАДЪЦИ'!$L$21*C21","v":0},0]
[null,"Общо",{"$f":"SUM(C6:C21)","v":0},{"$f":"SUM(D6:D21)","v":0},{"$f":"SUM(E6:E21)","v":0},{"$f":"SUM(F6:F21)","v":0}]
[]
[null,"Начало",null,null,null,"Бележки:  "]

{"sheet":"5. ДЕПОНИРАН ОБЩИНСКИ ОТПАДЪК","index":5,"n_rows":34,"n_cols":18,"rows_kept":34,"cut":false,"hidden":true,"merged":[[0,5,0,6],[1,1,1,3],[0,1,0,3],[25,1,25,2],[24,6,24,7],[3,1,3,10],[24,1,24,2],[25,5,31,10],[31,1,31,2],[0,8,0,25],[1,8,1,16],[33,1,34,2],[27,1,27,2],[26,1,26,2],[28,1,28,2],[29,1,29,2],[30,1,30,2]]}
[null,{"$f":"'2. ОБЩО СЪБРАН ОБЩИНСКИ ОТПАДЪК'!B1","v":"Община"},null,null,{"$f":"'2. ОБЩО СЪБРАН ОБЩИНСКИ ОТПАДЪК'!C1","v":"Период - година"},{"$f":"'4. СТРУКТУРА НА ОТПАДЪК'!E1","v":0},null,null,"Този работен лист се попълва / използва САМО, ако в общината няма сепариране на отпадъците. Моля, вижте Ръководството на потребителя "]
[null,{"$f":"'2. ОБЩО СЪБРАН ОБЩИНСКИ ОТПАДЪК'!B2","v":"Примерна община"},null,null,null,null,null,null,"Сепарират ли се отпадъците на територията на общината?",null,null,null,null,null,null,null,null,"Yes"]
[]
[null,"Депониран общински отпадък и експлоатационен период на сметищата без организирано "]
[null,1,2,3,4,5,6,7,8,9,10]
[null,"Структура на смесения общински отпадък",{"$f":"'4. СТРУКТУРА НА ОТПАДЪК'!C5","v":"Очаквано средно съдържание"},"Количество на събрания отпадък в тонове","Събран отпадък депониран на традиционни сметища като % от общия","Количество на събран отпадък депониран на традиционни сметища в тонове"," Събран отпадък депониран на контролирани сметища като % от общия","Количество на събран отпадък депониран на контролирани сметища в тонове","Събран отпадък, изгорен в инсталации за изгаряне без оползотворяване на енергия като % от общия","Събран отпадък, изгорен в инсталации за изгаряне без оползотворяване на енергия в тонове","Депониран отпадък общо (4+6)"]
[1,{"$f":"'4. СТРУКТУРА НА ОТПАДЪК'!B6","v":"Градински отпадъци"},{"$f":"'4. СТРУКТУРА НА ОТПАДЪК'!C6","v":0},{"$f":"'2. ОБЩО СЪБРАН ОБЩИНСКИ ОТПАДЪК'!$H$21*C7","v":0},null,{"$f":"D7*E7","v":0},null,{"$f":"D7*G7","v":0},null,{"$f":"D7*I7","v":0},{"$f":"E7+G7+I7","v":0}]
[2,{"$f":"'4. СТРУКТУРА НА ОТПАДЪК'!B7","v":"Други биоразградими отпадъци"},{"$f":"'4. СТРУКТУРА НА ОТПАДЪК'!C7","v":0},{"$f":"'2. ОБЩО СЪБРАН ОБЩИНСКИ ОТПАДЪК'!$H$21*C8","v":0},null,{"$f":"D8*E8","v":0},null,{"$f":"D8*G8","v":0},null,0,0]
[3,{"$f":"'4. СТРУКТУРА НА ОТПАДЪК'!B8","v":"Хартия"},{"$f":"'4. СТРУКТУРА НА ОТПАДЪК'!C8","v":0},{"$f":"'2. ОБЩО СЪБРАН ОБЩИНСКИ ОТПАДЪК'!$H$21*C9","v":0},null,0,null,0,null,0,0]
[4,{"$f":"'4. СТРУКТУРА НА ОТПАДЪК'!B9","v":"Стъкло"},{"$f":"'4. СТРУКТУРА НА ОТПАДЪК'!C9","v":0},{"$f":"'2. ОБЩО СЪБРАН ОБЩИНСКИ ОТПАДЪК'!$H$21*C10","v":0},null,0,null,0,null,0,0]
[5,{"$f":"'4. СТРУКТУРА НА ОТПАДЪК'!B10","v":"Картон"},{"$f":"'4. СТРУКТУРА НА ОТПАДЪК'!C10","v":0},{"$f":"'2. ОБЩО СЪБРАН ОБЩИНСКИ ОТПАДЪК'!$H$21*C11","v":0},null,0,null,0,null,0,0]
[6,{"$f":"'4. СТРУКТУРА НА ОТПАДЪК'!B11","v":"Картон с восък"},{"$f":"'4. СТРУКТУРА НА ОТПАДЪК'!C11","v":0},{"$f":"'2. ОБЩО СЪБРАН ОБЩИНСКИ ОТПАДЪК'!$H$21*C12","v":0},null,0,null,0,null,0,0]
[7,{"$f":"'4. СТРУКТУРА НА ОТПАДЪК'!B12","v":"Картон с алуминий"},{"$f":"'4. СТРУКТУРА НА ОТПАДЪК'!C12","v":0},{"$f":"'2. ОБЩО СЪБРАН ОБЩИНСКИ ОТПАДЪК'!$H$21*C13","v":0},null,0,null,0,null,0,0]
[8,{"$f":"'4. СТРУКТУРА НА ОТПАДЪК'!B13","v":"Метал - Опаковки и други"},{"$f":"'4. СТРУКТУРА НА ОТПАДЪК'!C13","v":0},{"$f":"'2. ОБЩО СЪБРАН ОБЩИНСКИ ОТПАДЪК'!$H$21*C14","v":0},null,0,null,0,null,0,0]
[9,{"$f":"'4. СТРУКТУРА НА ОТПАДЪК'!B14","v":"Метал - алуминиеви кутии"},{"$f":"'4. СТРУКТУРА НА ОТПАДЪК'!C14","v":0},{"$f":"'2. ОБЩО СЪБРАН ОБЩИНСКИ ОТПАДЪК'!$H$21*C15","v":0},null,0,null,0,null,0,0]
[10,{"$f":"'4. СТРУКТУРА НА ОТПАДЪК'!B15","v":"Пластмасови отпадъци от опаковки"},{"$f":"'4. СТРУКТУРА НА ОТПАДЪК'!C15","v":0},{"$f":"'2. ОБЩО СЪБРАН ОБЩИНСКИ ОТПАДЪК'!$H$21*C16","v":0},null,0,null,0,null,0,0]
[11,{"$f":"'4. СТРУКТУРА НА ОТПАДЪК'!B16","v":"Найлонови торбички"},{"$f":"'4. СТРУКТУРА НА ОТПАДЪК'!C16","v":0},{"$f":"'2. ОБЩО СЪБРАН ОБЩИНСКИ ОТПАДЪК'!$H$21*C17","v":0},null,0,null,0,null,0,0]
[12,{"$f":"'4. СТРУКТУРА НА ОТПАДЪК'!B17","v":"Твърди пластмаси"},{"$f":"'4. СТРУКТУРА НА ОТПАДЪК'!C17","v":0},{"$f":"'2. ОБЩО СЪБРАН ОБЩИНСКИ ОТПАДЪК'!$H$21*C18","v":0},null,0,null,0,null,0,0]
[13,{"$f":"'4. СТРУКТУРА НА ОТПАДЪК'!B18","v":"Текстил"},{"$f":"'4. СТРУКТУРА НА ОТПАДЪК'!C18","v":0},{"$f":"'2. ОБЩО СЪБРАН ОБЩИНСКИ ОТПАДЪК'!$H$21*C19","v":0},null,0,null,0,null,0,0]
[14,{"$f":"'4. СТРУКТУРА НА ОТПАДЪК'!B19","v":"Кожа"},{"$f":"'4. СТРУКТУРА НА ОТПАДЪК'!C19","v":0},{"$f":"'2. ОБЩО СЪБРАН ОБЩИНСКИ ОТПАДЪК'!$H$21*C20","v":0},null,0,null,0,null,0,0]
[15,{"$f":"'4. СТРУКТУРА НА ОТПАДЪК'!B20","v":"Пелени"},{"$f":"'4. СТРУКТУРА НА ОТПАДЪК'!C20","v":0},{"$f":"'2. ОБЩО СЪБРАН ОБЩИНСКИ ОТПАДЪК'!$H$21*C21","v":0},null,0,null,0,null,0,0]
[16,{"$f":"'4. СТРУКТУРА НА ОТПАДЪК'!B21","v":"Дребни детайли (<20mm)"},{"$f":"'4. СТРУКТУРА НА ОТПАДЪК'!C21","v":0},{"$f":"'2. ОБЩО СЪБРАН ОБЩИНСКИ ОТПАДЪК'!$H$21*C22","v":0},null,0,null,0,null,0,0]
[null,"Общо годишно",{"$f":"'4. СТРУКТУРА НА ОТПАДЪК'!C22","v":0},{"$f":"SUM(D7:D22)","v":0},null,{"$f":"SUM(F7:F22)","v":0},null,{"$f":"SUM(H7:H22)","v":0},null,{"$f":"SUM(J7:J22)","v":0},{"$f":"F23+H23","v":0}]
[null,"% от общото",null,null,null,{"$f":"F23/D23","v":{"$error":"#DIV/0!"}},null,{"$f":"H23/D23","v":{"$error":"#DIV/0!"}},null,{"$f":"J23/D23","v":{"$error":"#DIV/0!"}},{"$f":"F24+H24+J24","v":{"$error":"#DIV/0!"}}]
[null,"Експлоатационен период на сметищата (традиционни и контролирани)"]
[17,"Работни дни на сметището за година",null,null,null," Бележки:"]
[18,"Средно количество на депонирания отпадък в тонове за ден без изгаряне",null,{"$f":"D23/D26","v":{"$error":"#DIV/0!"}}]
[19,"Общ планиран капацитет на сметището в тонове"]
[20,"Използван обем на сметището до настоящия момент  "]
[21,"Оставащ обем в тонове",null,{"$f":"D28*(1-D29)","v":0}]
[22,"Оставащи години при сегашната скорост на депониране с изгаряне",null,{"$f":"D30/K23","v":{"$error":"#DIV/0!"}}]
[23,"Оставащи години при сегашната скорост на депониране без изгаряне",null,{"$f":"D30/D23","v":{"$error":"#DIV/0!"}}]
[]
[null,"Начало"]

{"sheet":"6. ОРГАНИЗИРАНО СЕПАРИРАНЕ","index":6,"n_rows":42,"n_cols":25,"rows_kept":42,"cut":false,"hidden":false,"merged":[[41,4,61,19],[34,1,36,3],[25,16,25,24],[22,20,23,20],[22,18,23,18],[22,6,23,6],[22,8,23,8],[22,4,23,4],[4,0,5,1],[24,1,24,4],[1,1,1,4],[24,22,24,24],[0,1,0,3],[23,23,23,24],[4,23,5,24],[22,23,22,24],[22,0,22,1],[3,3,3,22],[23,0,23,1],[22,16,23,16],[1,8,1,16],[0,8,0,24]]}
[null,{"$f":"'2. ОБЩО СЪБРАН ОБЩИНСКИ ОТПАДЪК'!B1","v":"Община"},null,null,{"$f":"'5. ДЕПОНИРАН ОБЩИНСКИ ОТПАДЪК'!E1","v":"Период - година"},{"$f":"'5. ДЕПОНИРАН ОБЩИНСКИ ОТПАДЪК'!F1:G1","v":0},null,null,"Този работен лист се попълва / използва САМО, ако в общината няма сепариране на отпадъците. Моля, вижте Ръководството на потребителя "]
[null,{"$f":"'2. ОБЩО СЪБРАН ОБЩИНСКИ ОТПАДЪК'!B2","v":"Примерна община"},null,null,null,null,null,null,"Сепарират ли се отпадъците на територията на общината?",null,null,null,null,null,null,null,null,"Yes"]
[]
[null,null,null,"ОРГАНИЗИРАНО СЕПАРИРАНЕ - СЕПАРИРАН ОБЩИНСКИ ОТПАДЪК И ДЕПОНИРАН ОТПАДЪК  - ВЪЗСТАНОВЯВАНЕ, ТРЕТИРАНЕ И ЕКСПЛОАТАЦИОНЕН ПЕРИОД НА СМЕТИЩАТА"]
["Структура на смесения общински отпадък",null,null,1,2,3,4,5,6,7,8,9,10,11,12,null,13,14,15,16,17,18,19]
[null,null,"Estimated Average Content ","Количество на събрания отпадък в тонове","Сепариран общински отпадък при източника като % от общия","Количество на сепарирания при източника общински отпадък в тонове","Събран отпадък, сепариран на депото като % от общия","Количество на отпадъка сепариран на депото в тонове","Сепариран като % от общо събрания","Количество на сепарирания отпадък в тонове","Структура на сепарирания отпадък","Събран отпадък депониран на сметищата като % от общия","Количество на събрания отпадък депониран на сметищата в тонове","Структурата на депонирания на сметища отпадък след сепариране като % от общия","Общ % на сепарирания и депониран отпадък",null,"Сепариран отпадък, пласиран за рециклиране или на склад като % от общото кол. Сепариран","Сепариран отпадък, рециклиран и пласиран в тонове","Сепариран отпадък изгорен в инсталации за изгаряне със или без оползотворяване на енергия като % от общото кол. Сепариран","Сепариран отпадък изгорен в инсталации за изгаряне със или без  оползотворяване на енергия в тонове","% на компостирания отпадък от общото количетво на сепарирания","Сепариран и след това компостиран отпадък в тонове","Общ % на сепарирания отпадък"]
[1,{"$f":"'4. СТРУКТУРА НА ОТПАДЪК'!B6","v":"Градински отпадъци"},{"$f":"'4. СТРУКТУРА НА ОТПАДЪК'!C6","v":0},{"$f":"'2. ОБЩО СЪБРАН ОБЩИНСКИ ОТПАДЪК'!$H$21*C7","v":0},null,{"$f":"D7*E7","v":0},null,{"$f":"D7*G7","v":0},{"$f":"E7+G7","v":0},{"$f":"F7+H7","v":0},{"$f":"J7/J$23","v":{"$error":"#DIV/0!"}},null,{"$f":"D7*L7","v":0},{"$f":"M7/M$23","v":{"$error":"#DIV/0!"}},{"$f":"E7+G7+L7","v":0},null,null,{"$f":"(F7+H7)*Q7","v":0},null,{"$f":"(H7+F7)*S7","v":0},null,{"$f":"(F7+H7)*U7","v":0},{"$f":"Q7+S7+U7","v":0},1,{"$f":"'4. СТРУКТУРА НА ОТПАДЪК'!B6","v":"Градински отпадъци"}]
[2,{"$f":"'4. СТРУКТУРА НА ОТПАДЪК'!B7","v":"Други биоразградими отпадъци"},{"$f":"'4. СТРУКТУРА НА ОТПАДЪК'!C7","v":0},{"$f":"'2. ОБЩО СЪБРАН ОБЩИНСКИ ОТПАДЪК'!$H$21*C8","v":0},null,{"$f":"D8*E8","v":0},null,{"$f":"D8*G8","v":0},{"$f":"E8+G8","v":0},{"$f":"F8+H8","v":0},{"$f":"J8/J$23","v":{"$error":"#DIV/0!"}},null,{"$f":"D8*L8","v":0},{"$f":"M8/M$23","v":{"$error":"#DIV/0!"}},0,null,null,0,null,{"$f":"(H8+F8)*S8","v":0},null,{"$f":"(F8+H8)*U8","v":0},{"$f":"Q8+S8+U8","v":0},2,{"$f":"'4. СТРУКТУРА НА ОТПАДЪК'!B7","v":"Други биоразградими отпадъци"}]
[3,{"$f":"'4. СТРУКТУРА НА ОТПАДЪК'!B8","v":"Хартия"},{"$f":"'4. СТРУКТУРА НА ОТПАДЪК'!C8","v":0},{"$f":"'2. ОБЩО СЪБРАН ОБЩИНСКИ ОТПАДЪК'!$H$21*C9","v":0},null,0,null,0,0,0,{"$error":"#DIV/0!"},null,0,{"$error":"#DIV/0!"},0,null,null,0,null,0,null,0,0,3,{"$f":"'4. СТРУКТУРА НА ОТПАДЪК'!B8","v":"Хартия"}]
[4,{"$f":"'4. СТРУКТУРА НА ОТПАДЪК'!B9","v":"Стъкло"},{"$f":"'4. СТРУКТУРА НА ОТПАДЪК'!C9","v":0},{"$f":"'2. ОБЩО СЪБРАН ОБЩИНСКИ ОТПАДЪК'!$H$21*C10","v":0},null,0,null,0,0,0,{"$error":"#DIV/0!"},null,0,{"$error":"#DIV/0!"},0,null,null,0,null,0,null,0,0,4,{"$f":"'4. СТРУКТУРА НА ОТПАДЪК'!B9","v":"Стъкло"}]
[5,{"$f":"'4. СТРУКТУРА НА ОТПАДЪК'!B10","v":"Картон"},{"$f":"'4. СТРУКТУРА НА ОТПАДЪК'!C10","v":0},{"$f":"'2. ОБЩО СЪБРАН ОБЩИНСКИ ОТПАДЪК'!$H$21*C11","v":0},null,0,null,0,0,0,{"$error":"#DIV/0!"},null,0,{"$error":"#DIV/0!"},0,null,null,0,null,0,null,0,0,5,{"$f":"'4. СТРУКТУРА НА ОТПАДЪК'!B10","v":"Картон"}]
[6,{"$f":"'4. СТРУКТУРА НА ОТПАДЪК'!B11","v":"Картон с восък"},{"$f":"'4. СТРУКТУРА НА ОТПАДЪК'!C11","v":0},{"$f":"'2. ОБЩО СЪБРАН ОБЩИНСКИ ОТПАДЪК'!$H$21*C12","v":0},null,0,null,0,0,0,{"$error":"#DIV/0!"},null,0,{"$error":"#DIV/0!"},0,null,null,0,null,0,null,0,0,6,{"$f":"'4. СТРУКТУРА НА ОТПАДЪК'!B11","v":"Картон с восък"}]
[7,{"$f":"'4. СТРУКТУРА НА ОТПАДЪК'!B12","v":"Картон с алуминий"},{"$f":"'4. СТРУКТУРА НА ОТПАДЪК'!C12","v":0},{"$f":"'2. ОБЩО СЪБРАН ОБЩИНСКИ ОТПАДЪК'!$H$21*C13","v":0},null,0,null,0,0,0,{"$error":"#DIV/0!"},null,0,{"$error":"#DIV/0!"},0,null,null,0,null,0,null,0,0,7,{"$f":"'4. СТРУКТУРА НА ОТПАДЪК'!B12","v":"Картон с алуминий"}]
[8,{"$f":"'4. СТРУКТУРА НА ОТПАДЪК'!B13","v":"Метал - Опаковки и други"},{"$f":"'4. СТРУКТУРА НА ОТПАДЪК'!C13","v":0},{"$f":"'2. ОБЩО СЪБРАН ОБЩИНСКИ ОТПАДЪК'!$H$21*C14","v":0},null,0,null,0,0,0,{"$error":"#DIV/0!"},null,0,{"$error":"#DIV/0!"},0,null,null,0,null,0,null,0,0,8,{"$f":"'4. СТРУКТУРА НА ОТПАДЪК'!B13","v":"Метал - Опаковки и други"}]
[9,{"$f":"'4. СТРУКТУРА НА ОТПАДЪК'!B14","v":"Метал - алуминиеви кутии"},{"$f":"'4. СТРУКТУРА НА ОТПАДЪК'!C14","v":0},{"$f":"'2. ОБЩО СЪБРАН ОБЩИНСКИ ОТПАДЪК'!$H$21*C15","v":0},null,0,null,0,0,0,{"$error":"#DIV/0!"},null,0,{"$error":"#DIV/0!"},0,null,null,0,null,0,null,0,0,9,{"$f":"'4. СТРУКТУРА НА ОТПАДЪК'!B14","v":"Метал - алуминиеви кутии"}]
[10,{"$f":"'4. СТРУКТУРА НА ОТПАДЪК'!B15","v":"Пластмасови отпадъци от опаковки"},{"$f":"'4. СТРУКТУРА НА ОТПАДЪК'!C15","v":0},{"$f":"'2. ОБЩО СЪБРАН ОБЩИНСКИ ОТПАДЪК'!$H$21*C16","v":0},null,0,null,0,0,0,{"$error":"#DIV/0!"},null,0,{"$error":"#DIV/0!"},0,null,null,0,null,0,null,0,0,10,{"$f":"'4. СТРУКТУРА НА ОТПАДЪК'!B15","v":"Пластмасови отпадъци от опаковки"}]
[11,{"$f":"'4. СТРУКТУРА НА ОТПАДЪК'!B16","v":"Найлонови торбички"},{"$f":"'4. СТРУКТУРА НА ОТПАДЪК'!C16","v":0},{"$f":"'2. ОБЩО СЪБРАН ОБЩИНСКИ ОТПАДЪК'!$H$21*C17","v":0},null,0,null,0,0,0,{"$error":"#DIV/0!"},null,0,{"$error":"#DIV/0!"},0,null,null,0,null,0,null,0,0,11,{"$f":"'4. СТРУКТУРА НА ОТПАДЪК'!B16","v":"Найлонови торбички"}]
[12,{"$f":"'4. СТРУКТУРА НА ОТПАДЪК'!B17","v":"Твърди пластмаси"},{"$f":"'4. СТРУКТУРА НА ОТПАДЪК'!C17","v":0},{"$f":"'2. ОБЩО СЪБРАН ОБЩИНСКИ ОТПАДЪК'!$H$21*C18","v":0},null,0,null,0,0,0,{"$error":"#DIV/0!"},null,0,{"$error":"#DIV/0!"},0,null,null,0,null,0,null,0,0,12,{"$f":"'4. СТРУКТУРА НА ОТПАДЪК'!B17","v":"Твърди пластмаси"}]
[13,{"$f":"'4. СТРУКТУРА НА ОТПАДЪК'!B18","v":"Текстил"},{"$f":"'4. СТРУКТУРА НА ОТПАДЪК'!C18","v":0},{"$f":"'2. ОБЩО СЪБРАН ОБЩИНСКИ ОТПАДЪК'!$H$21*C19","v":0},null,0,null,0,0,{"$f":"F19+H19","v":0},{"$f":"J19/J$23","v":{"$error":"#DIV/0!"}},null,0,{"$error":"#DIV/0!"},0,null,null,0,null,0,null,0,0,13,{"$f":"'4. СТРУКТУРА НА ОТПАДЪК'!B18","v":"Текстил"}]
[14,{"$f":"'4. СТРУКТУРА НА ОТПАДЪК'!B19","v":"Кожа"},{"$f":"'4. СТРУКТУРА НА ОТПАДЪК'!C19","v":0},{"$f":"'2. ОБЩО СЪБРАН ОБЩИНСКИ ОТПАДЪК'!$H$21*C20","v":0},null,0,null,0,0,0,{"$error":"#DIV/0!"},null,0,{"$error":"#DIV/0!"},0,null,null,0,null,0,null,0,0,14,{"$f":"'4. СТРУКТУРА НА ОТПАДЪК'!B19","v":"Кожа"}]
[15,{"$f":"'4. СТРУКТУРА НА ОТПАДЪК'!B20","v":"Пелени"},{"$f":"'4. СТРУКТУРА НА ОТПАДЪК'!C20","v":0},{"$f":"'2. ОБЩО СЪБРАН ОБЩИНСКИ ОТПАДЪК'!$H$21*C21","v":0},null,0,null,0,0,0,{"$error":"#DIV/0!"},null,0,{"$error":"#DIV/0!"},0,null,null,0,null,0,null,0,0,15,{"$f":"'4. СТРУКТУРА НА ОТПАДЪК'!B20","v":"Пелени"}]
[16,{"$f":"'4. СТРУКТУРА НА ОТПАДЪК'!B21","v":"Дребни детайли (<20mm)"},{"$f":"'4. СТРУКТУРА НА ОТПАДЪК'!C21","v":0},{"$f":"'2. ОБЩО СЪБРАН ОБЩИНСКИ ОТПАДЪК'!$H$21*C22","v":0},null,0,null,0,0,0,{"$error":"#DIV/0!"},null,0,{"$error":"#DIV/0!"},0,null,null,0,null,0,null,0,0,16,{"$f":"'4. СТРУКТУРА НА ОТПАДЪК'!B21","v":"Дребни детайли (<20mm)"}]
["Общо",null,{"$f":"SUM(C7:C22)","v":0},{"$f":"SUM(D7:D22)","v":0},null,{"$f":"SUM(F7:F22)","v":0},null,{"$f":"SUM(H7:H22)","v":0},null,{"$f":"SUM(J7:J22)","v":0},{"$error":"#DIV/0!"},null,{"$f":"SUM(M7:M22)","v":0},{"$f":"SUM(N7:N22)","v":{"$error":"#DIV/0!"}},{"$f":"F23+H23+M23","v":0},null,"от общия сепариран отпадък ",{"$f":"SUM(R7:R22)","v":0},"от общия сепариран отпадък ",{"$f":"SUM(T7:T22)","v":0},"от общия сепариран отпадък ",{"$f":"SUM(V7:V22)","v":0},{"$f":"R23+T23+V23","v":0},"Общо"]
["% от общото",null,null,null,null,{"$f":"F23/D23","v":{"$error":"#DIV/0!"}},null,{"$f":"H23/D23","v":{"$error":"#DIV/0!"}},null,{"$f":"J23/D23","v":{"$error":"#DIV/0!"}},null,null,{"$f":"M23/D23","v":{"$error":"#DIV/0!"}},null,{"$f":"O23/D23","v":{"$error":"#DIV/0!"}},null,null,{"$f":"R23/(F23+H23)","v":{"$error":"#DIV/0!"}},null,{"$f":"T23/(F23+H23)","v":{"$error":"#DIV/0!"}},null,{"$f":"V23/(F23+H23)","v":{"$error":"#DIV/0!"}},{"$f":"R24+T24+V24","v":{"$error":"#DIV/0!"}},"% от общото"]
[null,{"$f":"'5. ДЕПОНИРАН ОБЩИНСКИ ОТПАДЪК'!B25:C25","v":"Експлоатационен период на сметищата (традиционни и контролирани)"}]
[17,"Работни дни на сметището за година",null,null,null,null,null,null,null,null,null,null,null,null,null,null," "]
[18,"Средно количество на депонирания отпадък в тонове на ден преди сепариране",null,{"$f":"D23/D26","v":{"$error":"#DIV/0!"}}]
[19,"Средно количество на депонирания отпадък в тонове на ден след сепариране",null,{"$f":"M23/D26","v":{"$error":"#DIV/0!"}}]
[20,"Общ планиран капацитет на сметището в тонове"]
[21,{"$f":"'5. ДЕПОНИРАН ОБЩИНСКИ ОТПАДЪК'!B29","v":"Използван обем на сметището до настоящия момент  "}]
[22,"Оставащ капацитет в тонове",null,{"$f":"D29*(1-D30)","v":0}]
[23,"Живот (експлоатационен период) на сметището  - оставащи години след сепариране, рециклиране и възстановяване",null,{"$f":"D31/M23","v":{"$error":"#DIV/0!"}}]
[24,"Живот (експлоатационен период) на сметището- оставащи години при сегашната скорост на депониране без сепариране или изгаряне",null,{"$f":"D31/D23","v":{"$error":"#DIV/0!"}}]
[]
[null,"Начало"]
[]
[]
[]
[]
[]
[]
[null,null,null,null,"Бележки:  "]

{"sheet":"7. ОБЩИ И ФИНАНСОВИ ДАННИ","index":7,"n_rows":27,"n_cols":15,"rows_kept":27,"cut":false,"hidden":false,"merged":[[4,9,6,9],[18,2,18,3],[21,2,21,3],[23,2,23,3],[16,2,16,3],[20,2,20,3],[17,2,17,3],[7,6,7,9],[7,1,7,3],[19,2,19,3],[0,14,7,22],[1,8,1,11],[4,10,4,13],[26,3,37,9],[26,1,28,1],[22,2,22,3],[24,2,24,3],[0,6,0,7],[13,2,13,3],[14,2,14,3],[15,2,15,3],[12,2,12,3],[8,2,8,3],[9,2,9,3],[10,2,10,3],[11,2,11,3]]}
[null,{"$f":"'2. ОБЩО СЪБРАН ОБЩИНСКИ ОТПАДЪК'!B1","v":"Община"},null,{"$f":"'2. ОБЩО СЪБРАН ОБЩИНСКИ ОТПАДЪК'!C1","v":"Период - година"},{"$f":"'2. ОБЩО СЪБРАН ОБЩИНСКИ ОТПАДЪК'!E1:F1","v":0},null,"Покритие (обхват) на организираните дейности по управление на отпадъците",null,null,null,null,null,null,null,"Този работен лист е индикативен и показва финансовата устойчивост на услугата. Преди промяна на тарифата е необходим по-подробен анализ на приходите и разходите и ефективността. \n"]
[null,{"$f":"'2. ОБЩО СЪБРАН ОБЩИНСКИ ОТПАДЪК'!B2","v":"Примерна община"},null,null,null,"a","Общо жители или домакинства",{"$f":"SUM(H3:H4)","v":0},{"$f":"IF(H2='2. ОБЩО СЪБРАН ОБЩИНСКИ ОТПАДЪК'!C5,\"съвпада със стойността в работен лист 2- Общо събрани отпадъци\",\"Does not Match Value in Sheet 2-Total Waste Collected\")","v":"съвпада със стойността в работен лист 2- Общо събрани отпадъци"}]
[null,{"$f":"'2. ОБЩО СЪБРАН ОБЩИНСКИ ОТПАДЪК'!B3","v":"Площ в км2"},{"$f":"'2. ОБЩО СЪБРАН ОБЩИНСКИ ОТПАДЪК'!C3","v":0},null,null,"b","Градски"]
[null,{"$f":"'2. ОБЩО СЪБРАН ОБЩИНСКИ ОТПАДЪК'!B4","v":"население"},{"$f":"'2. ОБЩО СЪБРАН ОБЩИНСКИ ОТПАДЪК'!C4","v":0},null,null,"c","селски"]
[null,{"$f":"'2. ОБЩО СЪБРАН ОБЩИНСКИ ОТПАДЪК'!B5","v":"домакинства"},{"$f":"'2. ОБЩО СЪБРАН ОБЩИНСКИ ОТПАДЪК'!C5","v":0},null,null,"d","Общо обслужено население/домакинства",{"$f":"SUM(H6:H7)","v":0},{"$f":"H5/H2","v":{"$error":"#DIV/0!"}},"покритие на услугата",{"$f":"IF(H5='2. ОБЩО СЪБРАН ОБЩИНСКИ ОТПАДЪК'!C10,\"съвпада със стойността в работен лист 2- Общо събрани отпадъци\",\"Does not Match Value in Sheet 2-Total Waste Collected\")","v":"съвпада със стойността в работен лист 2- Общо събрани отпадъци"}]
[null,{"$f":"'2. ОБЩО СЪБРАН ОБЩИНСКИ ОТПАДЪК'!B6","v":"средно членове на домакинство"},{"$f":"'2. ОБЩО СЪБРАН ОБЩИНСКИ ОТПАДЪК'!C6","v":{"$error":"#DIV/0!"}},null,null,"e","Градски",null,{"$f":"H6/H3","v":{"$error":"#DIV/0!"}}]
[null,null,null,null,null,"f","селски",null,{"$f":"H7/H4","v":{"$error":"#DIV/0!"}}]
[null,"Общи и финансови данни",null,null,null,null,"Тарифа"]
[1,"Компания за комунални услуги - име и адрес на оператора  ",null,null,null,1,"Обслужен краен потребител","Настояща цена на обслужен потребител (за м2 или м3 месечно, за кг/т, или др.) в лв","Billling Units","Необходима цена в лв за да се достигне 100% сбираемост на приходите","индекс на увеличение на цената"]
[2,"Основни дейности и услуги ",null,null,null,2,null,null,null,{"$f":"H10/$C$12","v":{"$error":"#DIV/0!"}},{"$f":"J10/H10","v":{"$error":"#DIV/0!"}}]
[3,"Дял на приходите от дейности по управление на отпадъците от общите приходи на компанията",null,null,null,3,null,null,null,{"$error":"#DIV/0!"},{"$error":"#DIV/0!"}]
[4,"% на фактурираните/събрани приходи от дейности по упр. на отпадъците",null,null,null,4,null,null,null,{"$error":"#DIV/0!"},{"$error":"#DIV/0!"}]
[5,"Общи приходи от дейности по упр. на отпадъците в лв за година",null,null,null,5,null,null,null,{"$error":"#DIV/0!"},{"$error":"#DIV/0!"}]
[6,"Общи разходи (за материали, заплати, амортизация и др.) свързани със събирането и транспорта на отпадъци в лв за година",null,null,null,6,null,null,null,{"$error":"#DIV/0!"},{"$error":"#DIV/0!"}]
[7,"Оперативна печалба/загуба за година в лв",{"$f":"C13-C14","v":0},null,null,7,null,null,null,{"$error":"#DIV/0!"},{"$error":"#DIV/0!"}]
[8,"Необходим увеличение на приходите, за да се покрие оперативната загуба/ или приходи над оперативните разходи (със знак -)",{"$f":"C15/-C13","v":{"$error":"#DIV/0!"}},null,null,8,null,null,null,{"$error":"#DIV/0!"},{"$error":"#DIV/0!"}]
[9,"Необходимо намаление на разходите, за да се покрие оперативната загуба (със знак -) или оперативни разходи под приходите",{"$f":"C15/C14","v":{"$error":"#DIV/0!"}},null,null,9,null,null,null,{"$error":"#DIV/0!"},{"$error":"#DIV/0!"}]
[10,"Общо събран отпадък в тонове за година",{"$f":"'2. ОБЩО СЪБРАН ОБЩИНСКИ ОТПАДЪК'!H21","v":0},null,null,10,null,null,null,{"$error":"#DIV/0!"},{"$error":"#DIV/0!"}]
[11,"Общ брой на служителите заети в дейностите по упр. на отпадъците вкл. Администрацията",null,null,null,11,null,null,null,{"$error":"#DIV/0!"},{"$error":"#DIV/0!"}]
[12,"Брой на работниците заети пряко \"оперативно\" в дейности по упр. на отпадъците",null,null,null,12,null,null,null,{"$error":"#DIV/0!"},{"$error":"#DIV/0!"}]
[13,"Съотношение между администрация и оперативни работници 1:",{"$f":"C20/(C19-C20)","v":{"$error":"#DIV/0!"}},null,null,13,null,null,null,{"$error":"#DIV/0!"},{"$error":"#DIV/0!"}]
[14,"Количество събран отпадък годишно на работник в тонове",{"$f":"C18/C19","v":{"$error":"#DIV/0!"}},null,null,14,null,null,null,{"$error":"#DIV/0!"},{"$error":"#DIV/0!"}]
[15,"Обслужено население за нато лице",{"$f":"(H5/C19)","v":{"$error":"#DIV/0!"}},null,null,15,null,null,null,{"$error":"#DIV/0!"},{"$error":"#DIV/0!"}]
[16,"Наето лице на 1000 обслужени граждани",{"$f":"1000/C23","v":{"$error":"#DIV/0!"}},null,null,16,null,null,null,{"$error":"#DIV/0!"},{"$error":"#DIV/0!"}]
[17,"Текущи разходи за събирането и транспорта на отпадъци в лв за тон",{"$f":"C14/C18","v":{"$error":"#DIV/0!"}},null,null,17,null,null,null,{"$error":"#DIV/0!"},{"$error":"#DIV/0!"}]
[]
[null,"Начало",null,"Бележки: "]

{"sheet":"8. ИНВ-ИИ В ОБОРУД. И АКТИВИ","index":8,"n_rows":72,"n_cols":10,"rows_kept":72,"cut":false,"hidden":false,"merged":[[3,1,3,9],[71,1,73,1],[64,3,66,3],[64,6,66,6],[59,1,59,5]]}
[null,{"$f":"'2. ОБЩО СЪБРАН ОБЩИНСКИ ОТПАДЪК'!B1","v":"Община"},null,{"$f":"'2. ОБЩО СЪБРАН ОБЩИНСКИ ОТПАДЪК'!C1","v":"Период - година"},{"$f":"'2. ОБЩО СЪБРАН ОБЩИНСКИ ОТПАДЪК'!E1:F1","v":0}]
[null,{"$f":"'2. ОБЩО СЪБРАН ОБЩИНСКИ ОТПАДЪК'!B2","v":"Примерна община"}]
[]
[null,"Инвестициии в оборудване и активи"]
[]
[null,"ОПЕРАТОР- КОМПАНИЯ ЗА КОМУНАЛНИ УСЛУГИ (ИМЕ НА ФИРМАТА)",1,2,3,4,5,6,7,8]
[null,"Тип на оборудването за събиране и транспорт на твърди отпадъци","Съществуващ брой единици в действие","Планирани нови покупки","Покупна цена на новите съоръжения в лв","Необходима инвестиция в лв","Амортизационна норма","Годишна амортизация","Планирани разходи за кредитни услуги за една година","Амортизация и кредитни услуги за година"]
[1,"Контейнери 120 l",null,null,null,{"$f":"D8*E8","v":0},null,{"$f":"F8*G8","v":0},null,{"$f":"H8+I8","v":0}]
[2,"Контейнери 240 l",null,null,null,{"$f":"D9*E9","v":0},null,{"$f":"F9*G9","v":0},null,{"$f":"H9+I9","v":0}]
[3,"Контейнери 660 l",null,null,null,{"$f":"D10*E10","v":0},null,{"$f":"F10*G10","v":0},null,{"$f":"H10+I10","v":0}]
[4,"Контейнери 770 l",null,null,null,{"$f":"D11*E11","v":0},null,{"$f":"F11*G11","v":0},null,{"$f":"H11+I11","v":0}]
[5,"Контейнери 1100 l",null,null,null,0,null,0,null,0]
[6,"Скип контейнери 3,5m3",null,null,null,0,null,0,null,0]
[7,"Скип контейнери 5m³",null,null,null,0,null,0,null,0]
[8,"Скип контейнери 7m³",null,null,null,0,null,0,null,0]
[9,"Мултилифт контейнер 2,5",null,null,null,0,null,0,null,0]
[10,"Мултилифт контейнер 5m³",null,null,null,0,null,0,null,0]
[11,"Мултилифт контейнер 10m³",null,null,null,0,null,0,null,0]
[12,"Мултилифт контейнер 25m³",null,null,null,0,null,0,null,0]
[13,"Мултилифт контейнер 35m³",null,null,null,0,null,0,null,0]
[14,null,null,null,null,0,null,0,null,0]
[15,null,null,null,null,0,null,0,null,0]
[16,"Контейнери други ",null,null,null,{"$f":"D23*E23","v":0},null,{"$f":"F23*G23","v":0},null,0]
[null,"Междинна сума на съоръженията за събиране",{"$f":"SUM(C8:C23)","v":0},{"$f":"SUM(D8:D23)","v":0},null,{"$f":"SUM(F8:F23)","v":0},null,{"$f":"SUM(H8:H23)","v":0},{"$f":"SUM(I8:I23)","v":0},{"$f":"SUM(J8:J23)","v":0}]
[1,"Камиони 8t",null,null,null,{"$f":"D25*E25","v":0},null,{"$f":"F25*G25","v":0},null,{"$f":"H25+I25","v":0}]
[2,"Камиони 12t",null,null,null,{"$f":"D26*E26","v":0},null,{"$f":"F26*G26","v":0},null,{"$f":"H26+I26","v":0}]
[3,"Ротопреси мобилни",null,null,null,{"$f":"D27*E27","v":0},null,{"$f":"F27*G27","v":0},null,{"$f":"H27+I27","v":0}]
[4,"Камиони тип Компактор",null,null,null,{"$f":"D28*E28","v":0},null,{"$f":"F28*G28","v":0},null,{"$f":"H28+I28","v":0}]
[5,"Самосвал",null,null,null,{"$f":"D29*E29","v":0},null,{"$f":"F29*G29","v":0},null,{"$f":"H29+I29","v":0}]
[6,"Бордови камион",null,null,null,0,null,0,null,0]
[7,"Скип камион",null,null,null,0,null,0,null,0]
[8,"Камион за контейнери с кука ",null,null,null,0,null,0,null,0]
[9,"страничен товарач",null,null,null,0,null,0,null,0]
[10,"Камион и ремарке",null,null,null,0,null,0,null,0]
[11,"други превозни средства",null,null,null,{"$f":"D35*E35","v":0},null,{"$f":"F35*G35","v":0},null,0]
[null,"Междинна сума на транспортните съоръжения",{"$f":"SUM(C25:C35)","v":0},{"$f":"SUM(D25:D35)","v":0},null,{"$f":"SUM(F25:F35)","v":0},null,{"$f":"SUM(H25:H35)","v":0},{"$f":"SUM(I25:I35)","v":0},{"$f":"SUM(J25:J35)","v":0}]
[null,"Общо съоръжения за събиране",null,null,null,{"$f":"F24+F36","v":0},null,{"$f":"H24+H36","v":0},{"$f":"I24+I36","v":0},{"$f":"J24+J36","v":0}]
[null,"ОПЕРАТОР- КОМПАНИЯ ЗА КОМУНАЛНИ УСЛУГИ (ИМЕ НА ФИРМАТА)","1.1","2.1","3.1","4.1","5.1","6.1","7.1","8.1"]
[null,"Третиране, рециклиране и възстановяване на отпадъка","Съществуващ брой единици в действие","Планирани нови покупки","Покупна цена на новите съоръжения в лв","Необходима инвестиция в лв","Амортизационна норма","Годишна амортизация","Планирани разходи за кредитни услуги за една година","Амортизация и кредитни услуги за година"]
[1,"Проучване, проектиране, разрешителни",null,null,null,{"$f":"D40*E40","v":0},null,{"$f":"F40*G40","v":0},null,{"$f":"H40+I40","v":0}]
[2,"Покупка на земя",null,null,null,{"$f":"D41*E41","v":0},null,{"$f":"F41*G41","v":0},null,{"$f":"H41+I41","v":0}]
[3,"Механични инсталации",null,null,null,0,null,0,null,0]
[4,"Мобилно оборудване",null,null,null,0,null,0,null,0]
[5,"Строителство",null,null,null,0,null,0,null,0]
[6,null,null,null,null,0,null,0,null,0]
[7,"Други разходи",null,null,null,0,null,0,null,{"$f":"H46+I46","v":0}]
[null,"Междинна сума третиране",{"$f":"SUM(C40:C46)","v":0},null,null,{"$f":"SUM(F40:F46)","v":0},null,{"$f":"SUM(H40:H46)","v":0},{"$f":"SUM(I40:I46)","v":0},{"$f":"SUM(J40:J46)","v":0}]
[null,"ОПЕРАТОР- КОМПАНИЯ ЗА КОМУНАЛНИ УСЛУГИ (ИМЕ НА ФИРМАТА)","1.2","2.2","3.2","4.2","5.2","6.2","7.2","8.2"]
[null,"Инвестиции на сметищата","Съществуващ брой единици в действие","Планирани нови покупки","Покупна цена на новите съоръжения в лв","Необходима инвестиция в лв","Амортизационна норма","Годишна амортизация","Планирани разходи за кредитни услуги за една година","Амортизация и кредитни услуги за година"]
[1,"Проучване, проектиране, разрешителни",null,null,null,0,null,0,null,0]
[2,"Покупка на земя",null,null,null,0,null,0,null,0]
[3,"Механични инсталации",null,null,null,0,null,0,null,0]
[4,"Мобилно оборудване",null,null,null,0,null,0,null,0]
[5,"Строителство",null,null,null,{"$f":"D54*E54","v":0},null,{"$f":"F54*G54","v":0},null,{"$f":"H54+I54","v":0}]
[6,null,null,null,null,{"$f":"D55*E55","v":0},null,{"$f":"F55*G55","v":0},null,{"$f":"H55+I55","v":0}]
[7,"Други разходи",null,null,null,{"$f":"D56*E56","v":0},null,{"$f":"F56*G56","v":0},null,{"$f":"H56+I56","v":0}]
[null,"Междинна сума депониране",{"$f":"SUM(C50:C56)","v":0},null,null,{"$f":"SUM(F50:F56)","v":0},null,{"$f":"SUM(H50:H56)","v":0},{"$f":"SUM(I50:I56)","v":0},{"$f":"SUM(J50:J56)","v":0}]
[null,"Общо третиране и  депониране",null,null,null,{"$f":"F47+F57","v":0},null,{"$f":"H47+H57","v":0},{"$f":"I47+I57","v":0},{"$f":"J47+J57","v":0}]
[null,"Обща сума на инвестициите",null,null,null,{"$f":"SUM(F37,F58)","v":0},null,{"$f":"SUM(H37,H58)","v":0},{"$f":"SUM(I37,I58)","v":0},{"$f":"SUM(J37,J58)","v":0}]
[null,"Събиране, транспорт, рециклиране и депониране - корекции в разходите"]
[1,"Настоящи разходи за събиране и транспорт в лв",{"$f":"'7. ОБЩИ И ФИНАНСОВИ ДАННИ'!C14:D14","v":0},null,"Настоящи годишни разходи за събиране, транспорт, третиране, оползотворяване и депониране в лв",{"$f":"C61","v":0}]
[2,"Приблизителни допълнителни годишни разходи за съоръжения за събиране",{"$f":"J37","v":0},{"$f":"C62/$C$61","v":{"$error":"#DIV/0!"}},"Приблизителни допълнителни годишни разходи за всички инвестиции (капиталови разходи)",{"$f":"J59","v":0}]
[3,"Приблизително годишно увеличение на променливите разходи за събиране и транспорт в лв",null,{"$f":"C63/$C$61","v":{"$error":"#DIV/0!"}},"Приблизително годишно увеличение на оперативни разходи за третиране и депониране, общо в лв"]
[4,"Приблизително годишно увеличение на разходите в лв",{"$f":"SUM(C62:C63)","v":0},{"$f":"C64/$C$61","v":{"$error":"#DIV/0!"}},"Приблизително годишно увеличение на разходите",{"$f":"SUM(F62:F63)","v":0},{"$f":"F64/$F$61","v":{"$error":"#DIV/0!"}}]
[5,"Общо годишни разходи",{"$f":"SUM(C61:C63)","v":0},null,"Приблизителни годишни разходи, общо",{"$f":"SUM(F61:F63)","v":0}]
[6,"Настояща стойност на събирането и транспорта за тон в лв/тон",{"$f":"'7. ОБЩИ И ФИНАНСОВИ ДАННИ'!C25:D25","v":{"$error":"#DIV/0!"}},null,{"$f":"B67","v":"Приблизителна стойност на събирането и транспорта вкл. увеличението за инвестиции в оборудване в лв/тон"},{"$f":"C67","v":{"$error":"#DIV/0!"}}]
[7,"Приблизителна стойност на събирането и транспорта вкл. увеличението за инвестиции в оборудване в лв/тон",{"$f":"C66*(1+D64)","v":{"$error":"#DIV/0!"}},null,"Приблизително увеличение в разходите за инвестиции в рециклиране, възстановяване и депониране на събраните количества в лв/тон",{"$f":"F64/'2. ОБЩО СЪБРАН ОБЩИНСКИ ОТПАДЪК'!H21","v":{"$error":"#DIV/0!"}}]
[8,"Приблизително увеличение в стойността на събирането и транспорта за тон в лв",{"$f":"C67-C66","v":{"$error":"#DIV/0!"}},{"$f":"C68/C66","v":{"$error":"#DIV/0!"}},"Приблизителна обща стойност на управлението на твърди отпадъци (събиране, транспорт, третиране и депониране) с увеличението за инвестиции в лв/тон",{"$f":"F67+F66","v":{"$error":"#DIV/0!"}},{"$f":"F68/$F$69","v":{"$error":"#DIV/0!"}}]
[null,null,null,null,{"$f":"B66","v":"Настояща стойност на събирането и транспорта за тон в лв/тон"},{"$f":"C66","v":{"$error":"#DIV/0!"}}]
[null,null,null,null,"Приблизително увеличение в разходите за инвестиции в събиране, транспорт, третиране и депониране в лв/тон",{"$f":"F68-F69","v":{"$error":"#DIV/0!"}},{"$f":"F70/$F$69","v":{"$error":"#DIV/0!"}}]
[]
[null,"Начало"]

{"sheet":"9. УОО ОПИСАТЕЛНА ИНФОРМАЦИЯ","index":9,"n_rows":175,"n_cols":8,"rows_kept":175,"cut":false,"hidden":false,"merged":[[174,1,176,1],[139,3,139,4],[140,3,140,4],[141,3,141,4],[143,3,143,4],[142,3,142,4],[165,3,165,4],[171,3,171,4],[145,3,145,4],[146,3,146,4],[147,3,147,4],[151,3,151,4],[152,3,152,4],[169,3,169,4],[170,3,170,4],[153,3,153,4],[57,2,57,4],[60,2,60,4],[134,3,134,4],[135,3,135,4],[132,3,132,4],[130,3,130,4],[62,2,62,4],[58,2,58,4],[137,3,137,4],[138,3,138,4],[144,3,144,4],[131,3,131,4],[133,3,133,4],[154,3,154,4],[155,3,155,4],[166,3,166,4],[167,3,167,4],[168,3,168,4],[26,2,26,4],[24,2,24,4],[29,4,29,5],[1,1,1,4],[0,1,0,4],[22,2,22,4]]}
[null,"УПРАВЛЕНИЕ НА ОБЩИНСКИТЕ ОТПАДЪЦИ  - ОПИСАТЕЛНА ИНФОРМАЦИЯ"]
[null,{"$f":"'2. ОБЩО СЪБРАН ОБЩИНСКИ ОТПАДЪК'!B2:F2","v":"Примерна община"}]
[1,"Събиране на информацията",null,"да","не"]
[null,null,"Община"]
[null,null,"Населено място"]
[null,null,"район, регион"]
[]
[2,"Вид събиране",null,"да","не"]
[null,null,"традиционно"]
[null,null,"Разделно събиране на отделните фракции"]
[null,null,"Разделно събиране на обемния отпадък"]
[]
[3,"Операции по възстановяване на отпадъците",null,"да","не"]
[null,null,"организирано"]
[null,null,"неорганизирано"]
[]
[4,"Местоположение на организираното сепариране",null,"да","не"]
[null,null,"в дома"]
[null,null,"на улицата"]
[null,null,"на сметището"]
[null,null,"друго"]
[]
[5,"Име и адрес на операторите събиращи и транспортиращи общински отпадъци"]
[]
[6,"Име на отговорното лице"]
[]
[7,"Последна дата на влизане"]
[]
[]
[8,"Обем на събиране- Местна компания за комунални услуги или оператор събиращ и транспортиращ отпадъците","Оборудване за събиране и транспорт до местата за депониране","вид","Капацитет в м³/тон",null,"брой"]
[null,null,"Мобилни ротопреси"]
[null,null,"камиони Компактор"]
[null,null,"отворени камиони"]
[null,null,"камиони"]
[null,null,"други"]
[null,null,"Контейнери за рециклиращи се отпадъци"]
[null,null,"Контейнери 5t"]
[null,null,"други"]
[null,null,"Контейнери за рециклиращи се отпадъци",null,null,null,"брой","м³"]
[null,null,"Скип контейнери 3,5m³",null,null,null,null,{"$f":"G40*E40","v":0}]
[null,null,"Скип контейнери 5 m³",null,null,null,null,{"$f":"G41*E41","v":0}]
[null,null,"Скип контейнери 7 m³",null,null,null,null,0]
[null,null,"Контейнери мултилифт 2,5m³",null,null,null,null,0]
[null,null,"Контейнери мултилифт 5 m³",null,null,null,null,0]
[null,null,"Контейнери мултилифт 10 m³",null,null,null,null,0]
[null,null,"Контейнери мултилифт 25 m³",null,null,null,null,0]
[null,null,"Контейнери мултилифт 35 m³",null,null,null,null,0]
[null,null,"Контейнер 1.100 l",null,null,null,null,0]
[null,null,"Контейнер 660 l",null,null,null,null,0]
[null,null,"Контейнер 770 l",null,null,null,null,0]
[null,null,"Кош за отпадък 120 l",null,null,null,null,0]
[null,null,"Кош за отпадък 240 l",null,null,null,null,0]
[null,null,"Торби",null,null,null,null,0]
[null,null,"Други",null,null,null,null,0]
[null,null,"Сбор на осигурения обем на събиране в м3",null,null,null,{"$f":"SUM(G40:G54)","v":0},{"$f":"SUM(H40:H54)","v":0}]
[]
[]
[9,"Местоположение на сметището - община, име на местността, географски координати"]
[null,"Година на започване на депонирането"]
[]
[10,"Общини доставящи отпадъци на сметището"]
[]
[11,"Име и адрес на оператора на сметището"]
[]
[12,"Сметище- информация за депото",null,"да","не"]
[null,null,"съобразено със законодателството на ЕС"]
[null,null,"Традиционно депо"]
[null,"Сметище  - собственост на депото","публична"]
[null,null,"частна"]
[null,null,"смесена"]
[null,"Сметище - регулаторен статут на депото","на разрешителен режим"]
[null,null,"без разрешителен режим"]
[null,null,"освободен"]
[null,null,"предложен"]
[null,null,"незаконно"]
[null,"Сметище- депо- експлоатационен статус","Планиране"]
[null,null,"В строеж"]
[null,null,"Работещо"]
[null,null,"Неработещо"]
[null,null,"в процес на рехабилитация"]
[null,null,"предстои затваряне"]
[null,null,"затворено"]
[null,null,"окончателно затворено"]
[null,null," в процес на вземане на решение"]
[null,"Сметище- тип на оператора на депото","държавен"]
[null,null,"областен"]
[null,null,"регионален"]
[null,null,"за града"]
[null,null,"общински"]
[null,null,"частен"]
[null,null,"District"]
[null,"инфраструктура на сметището","път за достъп"]
[null,null,"вътрешни пътища"]
[null,null,"вода"]
[null,null,"канал"]
[null,null,"електричество"]
[null,null,"Система за събиране на газовете"]
[null,null,"Кантар за камиони"]
[null,null,"Оборудване за измиване на превозните средства"]
[null,"Механизация на депото","Булдозери"]
[null,null,"Компактори"]
[null,null,"Други - укажете"]
[null,"Съоръжения на сметището за опазване на околната среда","Дренаж"]
[null,null,"Повърхностни канали за вода"]
[null,null,"събиране на инфилтриралата се вода"]
[null,null,"система за пречистване на водата"]
[null,null,"Покриване и компактиране"]
[null,null,"Дезинфекция"]
[null,null,"други"]
[null,"Тип на депонирания отпадък и технологии за третиране на сметището/депото","Разрешени видове отпадъци за депониране без третиране"]
[null,null,"Метали"]
[null,null,"Опаковки"]
[null,null,"Селскостопански отпадъци"]
[null,null,"Строителни отпадъци"]
[null,null,"Електронен отпадък"]
[null,null,"Опасен битов отпадък"]
[null,null,"Медицински отпадък"]
[null,null,"Животински отпадък"]
[null,null,"Пепел и утайки"]
[null,null,"Гуми"]
[null,null,"Покриване на отпадъците с инертни материали"]
[null,null,"Сепариране/разделяне на отпадъците на място"]
[null,null,"Съоръжения за възстановяване/преработване на отпадъци"]
[null,null,"Рециклиращи съоръжения"]
[null,null,"Съоръжение за компостиране"]
[null,null,"Газификация"]
[null,null,"Изгаряне"]
[null,null,"Комбинирано третиране"]
[null,null,"Други- укажете"]
[]
[null,"Геометрия на сметището","дължина в метри"]
[null,null,"ширина в метри"]
[null,null,"Площ в м2"]
[null,null,"Обем в м3"]
[null,null,"Общ обем на сметището в м3"]
[null,null,"Използван до 2010 год обем в м3"]
[]
[null,"Разположение на сметището - разстояни в метри от:","населени места"]
[null,null,"потоци, реки, езера"]
[null,null,"Водоснабдителни източници"]
[null,null,"Здравни центрове или болници"]
[null,null,"Места за производство на храни"]
[null,null,"Подземна инфраструктура"]
[null,null,"газо или петроло-проводи"]
[null,null,"автобусна или ЖП гара"]
[null,null,"летище"]
[null,null,"склад за запалими вещества"]
[null,null,"защитени зони"]
[]
[]
[null,"Оперативно финансиране за събиране и транспорт"]
[null,null,"Такси от потребители - цени (укажи: за домакинство на обитател, на домакинство, кг/тон или м2 в лв)"]
[null,null,"Такси от потребителя - цена (укажи: за производство ио търговия, кг/тон, м2 или друго в лв)"]
[null,null,"Отделно за транспорт и събиране за м3 или кг/тон в лв"]
[null,null,"Отделно за депониране на сметището за м3 или кг/тон в лв"]
[null,null,"Единна такса за събиране и депониране за м3 или кг/тон в лв"]
[]
[13,"Единна такса за събиране и депониране за м3 или кг/тон в лв",null,"да","не"]
[null,null,"Настоящата цена покрива оперативните разходи"]
[null,null,"Настоящата цена покрива оперативните разходи, вкл. амортизацията "]
[null,null,"Настоящата цена покрива всички разходи, вкл. разходите за инвестиции/ връщане на кредити"]
[null,"Такса за депониранеи други такси за обезвреждане на контролирани сметища","Настоящата цена покрива оперативните разходи"]
[null,null,"Настоящата цена покрива оперативните разходи, вкл. амортизацията "]
[null,null,"Настоящата цена покрива всички разходи, вкл. разходите за инвестиции/ връщане на кредити"]
[]
[14,"Инвестиционно финансиране","Фонд за опазване на околната среда"]
[null,"Местен план за финансиране на ново контролирано сметище или начин за управление на отпадъците, абсолютни стойности в 000 лв или % от общото финансиране ","Международни дарения"]
[null,null,"Национални субсидии"]
[null,null,"Общински бюджет"]
[null,null,"Директни заеми"]
[null,null,"Частни инвестиции или участия"]
[null,null,"Общо",{"$f":"SUM(D166:E171)","v":0}]
[]
[]
[null,"Начало"]